[Event "*** Titled Tuesday Blitz"]
[Site "Chess.com"]
[Date "2020.04.14"]
[Round "7"]
[White "Igor_Lysyj"]
[Black "temiksmozg"]
[Result "1-0"]
[WhiteElo "2823"]
[BlackElo "2655"]
[TimeControl "180+1"]
[EndTime "11:12:47 PDT"]
[Termination "Igor_Lysyj won by resignation"]

1. d4 {[%clk 0:03:00.1]} 1... d5 {[%clk 0:02:59.1]} 2. c4 {[%clk 0:02:59.8]}
2... e6 {[%clk 0:02:59.4]} 3. Nf3 {[%clk 0:02:59.4]} 3... Nf6 {[%clk 0:02:58.6]}
4. g3 {[%clk 0:02:59.2]} 4... Bb4+ {[%clk 0:02:58.3]} 5. Bd2 {[%clk 0:02:58.5]}
5... Be7 {[%clk 0:02:58.4]} 6. Bg2 {[%clk 0:02:57.6]} 6... O-O {[%clk
0:02:58.5]} 7. O-O {[%clk 0:02:57]} 7... Nbd7 {[%clk 0:02:55.1]} 8. Qc2 {[%clk
0:02:55.8]} 8... c6 {[%clk 0:02:52.3]} 9. a3 {[%clk 0:02:55.8]} 9... a5 {[%clk
0:02:48.7]} 10. Bf4 {[%clk 0:02:52.8]} 10... Ne4 {[%clk 0:02:46.1]} 11. Nc3
{[%clk 0:02:48.5]} 11... f5 {[%clk 0:02:45.8]} 12. Rad1 {[%clk 0:02:47.3]} 12...
g5 {[%clk 0:02:39.3]} 13. Bc1 {[%clk 0:02:45]} 13... h6 {[%clk 0:02:29.6]} 14.
Nxe4 {[%clk 0:02:40.2]} 14... fxe4 {[%clk 0:02:26.7]} 15. Ne1 {[%clk 0:02:39.5]}
15... Bf6 {[%clk 0:02:18.6]} 16. f3 {[%clk 0:02:35.4]} 16... exf3 {[%clk
0:02:18.6]} 17. Nxf3 {[%clk 0:02:32.6]} 17... Bg7 {[%clk 0:02:16.2]} 18. e4
{[%clk 0:02:27.7]} 18... Nf6 {[%clk 0:02:00.5]} 19. e5 {[%clk 0:02:18]} 19...
Ne4 {[%clk 0:01:59.4]} 20. Nd2 {[%clk 0:02:17.2]} 20... Nxd2 {[%clk 0:01:49.1]}
21. Bxd2 {[%clk 0:02:16.8]} 21... Bd7 {[%clk 0:01:47]} 22. b4 {[%clk 0:02:09.1]}
22... axb4 {[%clk 0:01:44.3]} 23. Bxb4 {[%clk 0:02:09.1]} 23... Rxf1+ {[%clk
0:01:44]} 24. Rxf1 {[%clk 0:02:08.5]} 24... Be8 {[%clk 0:01:40.7]} 25. Bh3
{[%clk 0:02:03.5]} 25... Qd7 {[%clk 0:01:40.1]} 26. Bd6 {[%clk 0:01:56.9]} 26...
Bh5 {[%clk 0:01:31.3]} 27. cxd5 {[%clk 0:01:36.5]} 27... cxd5 {[%clk 0:01:30.8]}
28. Rc1 {[%clk 0:01:36.2]} 28... g4 {[%clk 0:01:20.8]} 29. Bf1 {[%clk
0:01:34.5]} 29... Qa4 {[%clk 0:01:20.4]} 30. Qxa4 {[%clk 0:01:30.3]} 30... Rxa4
{[%clk 0:01:21.3]} 31. Rc8+ {[%clk 0:01:29.5]} 31... Kh7 {[%clk 0:01:20.2]} 32.
Bb4 {[%clk 0:01:26.9]} 32... Bg6 {[%clk 0:01:16]} 33. Bb5 {[%clk 0:01:25.5]}
33... Ra7 {[%clk 0:01:08.6]} 34. a4 {[%clk 0:01:24.1]} 34... h5 {[%clk
0:01:05.9]} 35. a5 {[%clk 0:01:20.9]} 35... Bh6 {[%clk 0:01:04.8]} 36. Kf2
{[%clk 0:01:20.8]} 36... Bf5 {[%clk 0:00:49.4]} 37. Rc7+ {[%clk 0:01:17.7]}
37... Kg6 {[%clk 0:00:48.9]} 38. a6 {[%clk 0:01:16.1]} 38... Rxa6 {[%clk
0:00:47.4]} 39. Be8+ {[%clk 0:01:13.2]} 1-0

[Event "*** Titled Tuesday Blitz"]
[Site "Chess.com"]
[Date "2020.04.14"]
[Round "7"]
[White "theprosecution1"]
[Black "johnathan113"]
[Result "1-0"]
[WhiteElo "2810"]
[BlackElo "2650"]
[TimeControl "180+1"]
[EndTime "11:12:50 PDT"]
[Termination "theprosecution1 won on time"]

1. e4 {[%clk 0:03:00.9]} 1... g6 {[%clk 0:03:00.9]} 2. d4 {[%clk 0:02:59.6]}
2... Nf6 {[%clk 0:03:01.6]} 3. e5 {[%clk 0:02:52.7]} 3... Nh5 {[%clk 0:03:01.9]}
4. Nf3 {[%clk 0:02:52.2]} 4... d6 {[%clk 0:03:02.2]} 5. exd6 {[%clk 0:02:52.7]}
5... cxd6 {[%clk 0:03:03.1]} 6. Be2 {[%clk 0:02:52.7]} 6... Bg7 {[%clk
0:03:03.6]} 7. O-O {[%clk 0:02:53]} 7... O-O {[%clk 0:03:04.2]} 8. h3 {[%clk
0:02:51.8]} 8... d5 {[%clk 0:03:01.4]} 9. Be3 {[%clk 0:02:41.1]} 9... Nc6 {[%clk
0:02:56.7]} 10. Re1 {[%clk 0:02:41.7]} 10... e5 {[%clk 0:02:36.7]} 11. dxe5
{[%clk 0:02:41]} 11... Nxe5 {[%clk 0:02:37.3]} 12. Nxe5 {[%clk 0:02:36.9]} 12...
Bxe5 {[%clk 0:02:38.2]} 13. Bxh5 {[%clk 0:02:15]} 13... Bxb2 {[%clk 0:02:37.6]}
14. Bd4 {[%clk 0:02:14.7]} 14... Bxa1 {[%clk 0:02:30]} 15. Bxa1 {[%clk
0:02:15.6]} 15... gxh5 {[%clk 0:02:30.3]} 16. Qxh5 {[%clk 0:01:55.6]} 16... f6
{[%clk 0:02:29.5]} 17. Nc3 {[%clk 0:01:35.7]} 17... Rf7 {[%clk 0:00:50]} 18.
Nxd5 {[%clk 0:01:34.3]} 18... Bd7 {[%clk 0:00:50.3]} 19. Qh6 {[%clk 0:01:15.6]}
19... Qa5 {[%clk 0:00:44.1]} 20. Ne7+ {[%clk 0:01:00.3]} 1-0

[Event "*** Titled Tuesday Blitz"]
[Site "Chess.com"]
[Date "2020.04.14"]
[Round "7"]
[White "Kavyev_Ruslan"]
[Black "fmshawnrl123"]
[Result "0-1"]
[WhiteElo "2550"]
[BlackElo "2774"]
[TimeControl "180+1"]
[EndTime "11:12:50 PDT"]
[Termination "fmshawnrl123 won by resignation"]

1. d4 {[%clk 0:03:00.9]} 1... Nf6 {[%clk 0:02:58.4]} 2. c4 {[%clk 0:03:00.9]}
2... e6 {[%clk 0:02:57.7]} 3. Nf3 {[%clk 0:02:58.1]} 3... d5 {[%clk 0:02:57.4]}
4. g3 {[%clk 0:02:58.2]} 4... Be7 {[%clk 0:02:54.2]} 5. Bg2 {[%clk 0:02:58.7]}
5... O-O {[%clk 0:02:52.5]} 6. Nc3 {[%clk 0:02:58.6]} 6... dxc4 {[%clk
0:02:53.4]} 7. Ne5 {[%clk 0:02:58.6]} 7... c5 {[%clk 0:02:52.3]} 8. dxc5 {[%clk
0:02:57.7]} 8... Qxd1+ {[%clk 0:02:49.7]} 9. Nxd1 {[%clk 0:02:58.6]} 9... Bxc5
{[%clk 0:02:49.4]} 10. Ne3 {[%clk 0:02:50.3]} 10... Bb4+ {[%clk 0:02:42.5]} 11.
Bd2 {[%clk 0:02:44.5]} 11... Bxd2+ {[%clk 0:02:42.3]} 12. Kxd2 {[%clk
0:02:45.4]} 12... Rd8+ {[%clk 0:02:43.2]} 13. Kc2 {[%clk 0:02:09.4]} 13... Na6
{[%clk 0:02:37.2]} 14. Rad1 {[%clk 0:02:06.1]} 14... Rxd1 {[%clk 0:02:16.5]} 15.
Rxd1 {[%clk 0:02:05.1]} 15... Kf8 {[%clk 0:02:15.4]} 16. N3xc4 {[%clk
0:02:04.5]} 16... Ke7 {[%clk 0:02:14.5]} 17. a3 {[%clk 0:01:55.7]} 17... Nc5
{[%clk 0:02:05.3]} 18. Nd6 {[%clk 0:01:46.7]} 18... Bd7 {[%clk 0:02:00.6]} 19.
Nxd7 {[%clk 0:01:41.6]} 19... Nfxd7 {[%clk 0:01:51.6]} 20. b4 {[%clk 0:01:41.3]}
20... Na4 {[%clk 0:01:44.9]} 21. Bxb7 {[%clk 0:01:37.6]} 21... Rd8 {[%clk
0:01:38.6]} 22. Bc6 {[%clk 0:01:27.3]} 22... Nab6 {[%clk 0:01:34]} 23. Nb5
{[%clk 0:01:19.4]} 23... Rc8 {[%clk 0:01:29.4]} 24. Nxa7 {[%clk 0:00:59.7]}
24... Rc7 {[%clk 0:01:29]} 25. a4 {[%clk 0:00:53.6]} 25... Rxa7 {[%clk
0:01:28.3]} 26. a5 {[%clk 0:00:51.7]} 26... Rc7 {[%clk 0:01:22.1]} 27. b5 {[%clk
0:00:51.4]} 27... Nc4 {[%clk 0:01:15.6]} 28. Rxd7+ {[%clk 0:00:14.7]} 28... Rxd7
{[%clk 0:01:15.2]} 29. Bxd7 {[%clk 0:00:15.6]} 29... Kxd7 {[%clk 0:01:14.5]} 30.
a6 {[%clk 0:00:15.7]} 30... Na3+ {[%clk 0:01:12.8]} 0-1

[Event "*** Titled Tuesday Blitz"]
[Site "Chess.com"]
[Date "2020.04.14"]
[Round "7"]
[White "hitaman"]
[Black "atbenina64"]
[Result "1-0"]
[WhiteElo "2676"]
[BlackElo "2513"]
[TimeControl "180+1"]
[EndTime "11:12:50 PDT"]
[Termination "hitaman won by resignation"]

1. e4 {[%clk 0:02:57.7]} 1... c6 {[%clk 0:02:59.5]} 2. d4 {[%clk 0:02:56.5]}
2... d5 {[%clk 0:02:59.7]} 3. e5 {[%clk 0:02:57.1]} 3... Bf5 {[%clk 0:02:58.9]}
4. h4 {[%clk 0:02:57.2]} 4... h5 {[%clk 0:02:58.8]} 5. Bd3 {[%clk 0:02:56.7]}
5... Bxd3 {[%clk 0:02:58.9]} 6. Qxd3 {[%clk 0:02:57.6]} 6... Qa5+ {[%clk
0:02:59.2]} 7. Bd2 {[%clk 0:02:55.4]} 7... Qa6 {[%clk 0:02:59.6]} 8. e6 {[%clk
0:02:55.8]} 8... Qxd3 {[%clk 0:02:57.1]} 9. exf7+ {[%clk 0:02:56.7]} 9... Kxf7
{[%clk 0:02:58]} 10. cxd3 {[%clk 0:02:57.1]} 10... Nd7 {[%clk 0:02:52.3]} 11.
Nf3 {[%clk 0:02:56.4]} 11... g6 {[%clk 0:02:52.2]} 12. Bc3 {[%clk 0:02:56.6]}
12... Nh6 {[%clk 0:02:38]} 13. Nbd2 {[%clk 0:02:45.8]} 13... Nf5 {[%clk
0:02:37]} 14. O-O {[%clk 0:02:44.8]} 14... Bh6 {[%clk 0:02:36.3]} 15. Rfe1
{[%clk 0:02:37.8]} 15... Rhf8 {[%clk 0:02:31.5]} 16. g3 {[%clk 0:02:34.9]} 16...
Kg8 {[%clk 0:02:25.6]} 17. Kg2 {[%clk 0:02:33.5]} 17... Rae8 {[%clk 0:02:24.6]}
18. Re6 {[%clk 0:02:31.6]} 18... Kg7 {[%clk 0:02:23.2]} 19. Rae1 {[%clk
0:02:30.4]} 19... Nf6 {[%clk 0:02:20.7]} 20. Nb3 {[%clk 0:02:16.4]} 20... Ng4
{[%clk 0:02:04.6]} 21. Nc5 {[%clk 0:01:55.2]} 21... Rb8 {[%clk 0:00:57.4]} 22.
Nd7 {[%clk 0:01:52.6]} 22... Rbd8 {[%clk 0:00:54.1]} 23. Nxf8 {[%clk 0:01:51.6]}
23... Rxf8 {[%clk 0:00:55]} 24. Bb4 {[%clk 0:01:11.7]} 24... Rf7 {[%clk
0:00:33.4]} 25. Bxe7 {[%clk 0:01:07.4]} 25... Nxd4 {[%clk 0:00:32.5]} 26. Nxd4
{[%clk 0:01:03.1]} 26... Rxf2+ {[%clk 0:00:33.4]} 27. Kg1 {[%clk 0:01:03]} 27...
Bd2 {[%clk 0:00:28.4]} 28. R1e2 {[%clk 0:00:58.9]} 1-0

[Event "*** Titled Tuesday Blitz"]
[Site "Chess.com"]
[Date "2020.04.14"]
[Round "7"]
[White "GrafLermontov"]
[Black "Lysiak_Poltorak"]
[Result "0-1"]
[WhiteElo "2379"]
[BlackElo "2256"]
[TimeControl "180+1"]
[EndTime "11:12:51 PDT"]
[Termination "Lysiak_Poltorak won by resignation"]

1. d4 {[%clk 0:03:00.9]} 1... Nf6 {[%clk 0:02:59.8]} 2. c4 {[%clk 0:03:00.5]}
2... e6 {[%clk 0:02:59.9]} 3. Nc3 {[%clk 0:03:00.5]} 3... Bb4 {[%clk 0:02:59.9]}
4. e3 {[%clk 0:03:01]} 4... Bxc3+ {[%clk 0:02:59.3]} 5. bxc3 {[%clk 0:02:59.4]}
5... c5 {[%clk 0:02:59.9]} 6. Nf3 {[%clk 0:02:53.4]} 6... b6 {[%clk 0:02:55.3]}
7. Bd3 {[%clk 0:02:49]} 7... Bb7 {[%clk 0:02:54.5]} 8. Ba3 {[%clk 0:02:47.9]}
8... d6 {[%clk 0:02:53.7]} 9. O-O {[%clk 0:02:46.8]} 9... O-O {[%clk 0:02:52.2]}
10. Qe2 {[%clk 0:02:43.6]} 10... Qe7 {[%clk 0:02:49.6]} 11. e4 {[%clk
0:02:42.9]} 11... e5 {[%clk 0:02:47]} 12. Rfe1 {[%clk 0:02:41.5]} 12... Nbd7
{[%clk 0:02:45.9]} 13. Rad1 {[%clk 0:02:39.8]} 13... Rac8 {[%clk 0:02:43.8]} 14.
d5 {[%clk 0:02:36]} 14... g6 {[%clk 0:02:40.2]} 15. Bc1 {[%clk 0:02:35.4]} 15...
Nh5 {[%clk 0:02:37.4]} 16. g3 {[%clk 0:02:34.5]} 16... Ng7 {[%clk 0:02:35.8]}
17. Bh6 {[%clk 0:02:31.6]} 17... f5 {[%clk 0:02:32.6]} 18. Bxg7 {[%clk
0:02:28.4]} 18... Qxg7 {[%clk 0:02:29]} 19. Ng5 {[%clk 0:02:25.8]} 19... Qf6
{[%clk 0:02:24.3]} 20. Ne6 {[%clk 0:02:23.5]} 20... Rf7 {[%clk 0:02:23.5]} 21.
Rf1 {[%clk 0:02:12.4]} 21... f4 {[%clk 0:02:19.2]} 22. Qg4 {[%clk 0:01:57.6]}
22... h6 {[%clk 0:01:47.9]} 23. f3 {[%clk 0:01:51.6]} 23... Nf8 {[%clk
0:01:44.6]} 24. Kh1 {[%clk 0:01:29.5]} 24... fxg3 {[%clk 0:01:27.6]} 25. hxg3
{[%clk 0:01:10.1]} 25... Nxe6 {[%clk 0:01:25.6]} 26. dxe6 {[%clk 0:01:09.6]}
26... Re7 {[%clk 0:01:20.9]} 27. Kg2 {[%clk 0:01:07.9]} 27... Rf8 {[%clk
0:01:15.4]} 28. Rh1 {[%clk 0:01:05.6]} 28... Kg7 {[%clk 0:01:14]} 29. Rh2 {[%clk
0:00:37.5]} 29... Bc8 {[%clk 0:01:11.3]} 30. Rdh1 {[%clk 0:00:27.2]} 30... Bxe6
{[%clk 0:01:08]} 31. Qh4 {[%clk 0:00:25.8]} 31... Qxf3+ {[%clk 0:01:07.1]} 0-1

[Event "*** Titled Tuesday Blitz"]
[Site "Chess.com"]
[Date "2020.04.14"]
[Round "7"]
[White "chiwii"]
[Black "Oleg_Papayan"]
[Result "1-0"]
[WhiteElo "2242"]
[BlackElo "2353"]
[TimeControl "180+1"]
[EndTime "11:12:51 PDT"]
[Termination "chiwii won by checkmate"]

1. e4 {[%clk 0:03:00.9]} 1... e5 {[%clk 0:02:47.3]} 2. Nf3 {[%clk 0:03:00.7]}
2... Nc6 {[%clk 0:02:46.2]} 3. Nc3 {[%clk 0:03:01]} 3... Nf6 {[%clk 0:02:44.4]}
4. Be2 {[%clk 0:03:01.1]} 4... Bc5 {[%clk 0:02:44.4]} 5. Nxe5 {[%clk 0:03:00.5]}
5... Bxf2+ {[%clk 0:02:43.1]} 6. Kxf2 {[%clk 0:03:00.8]} 6... Nxe5 {[%clk
0:02:44]} 7. d4 {[%clk 0:03:00.4]} 7... Ng6 {[%clk 0:02:41.7]} 8. Bf3 {[%clk
0:03:00.2]} 8... O-O {[%clk 0:02:38.5]} 9. Rf1 {[%clk 0:03:00.3]} 9... d6 {[%clk
0:02:31]} 10. Bg5 {[%clk 0:02:58.4]} 10... h6 {[%clk 0:02:30.2]} 11. Bxf6 {[%clk
0:02:55.6]} 11... Qxf6 {[%clk 0:02:31.1]} 12. Kg1 {[%clk 0:02:55.9]} 12... c6
{[%clk 0:02:20.1]} 13. Qd3 {[%clk 0:02:42]} 13... Bd7 {[%clk 0:02:05.1]} 14.
Rae1 {[%clk 0:02:40.4]} 14... Rad8 {[%clk 0:02:02.3]} 15. Qc4 {[%clk 0:02:21.8]}
15... Qe7 {[%clk 0:01:49.7]} 16. Kh1 {[%clk 0:02:12.3]} 16... Be6 {[%clk
0:01:49.4]} 17. Qa4 {[%clk 0:02:08.4]} 17... b5 {[%clk 0:01:02.6]} 18. Qa6
{[%clk 0:01:52.6]} 18... Bc4 {[%clk 0:00:47.5]} 19. Rg1 {[%clk 0:01:41]} 19...
Nh4 {[%clk 0:00:35.7]} 20. b3 {[%clk 0:01:39.3]} 20... Nxf3 {[%clk 0:00:23.9]}
21. gxf3 {[%clk 0:01:40.2]} 21... Qf6 {[%clk 0:00:24.3]} 22. Rg3 {[%clk
0:01:37.7]} 22... b4 {[%clk 0:00:17.1]} 23. Qxc4 {[%clk 0:01:36.6]} 23... bxc3
{[%clk 0:00:18]} 24. Qxc3 {[%clk 0:01:36.9]} 24... c5 {[%clk 0:00:17]} 25. e5
{[%clk 0:01:35.3]} 25... dxe5 {[%clk 0:00:10.6]} 26. dxe5 {[%clk 0:01:36.2]}
26... Qc6 {[%clk 0:00:08.8]} 27. Reg1 {[%clk 0:01:33.3]} 27... g6 {[%clk
0:00:06.7]} 28. Qe3 {[%clk 0:01:31.7]} 28... Kh7 {[%clk 0:00:05.5]} 29. Rh3
{[%clk 0:01:30.6]} 29... h5 {[%clk 0:00:03.6]} 30. Qg5 {[%clk 0:01:26.9]} 30...
Rd4 {[%clk 0:00:02.7]} 31. Rxh5+ {[%clk 0:01:25.9]} 31... Kg7 {[%clk 0:00:01.9]}
32. Qh6+ {[%clk 0:01:26]} 32... Kg8 {[%clk 0:00:01.9]} 33. Qh8# {[%clk
0:01:25.5]} 1-0

[Event "*** Titled Tuesday Blitz"]
[Site "Chess.com"]
[Date "2020.04.14"]
[Round "7"]
[White "DaggiGretarsson"]
[Black "MasterKroket"]
[Result "1-0"]
[WhiteElo "2635"]
[BlackElo "2440"]
[TimeControl "180+1"]
[EndTime "11:12:52 PDT"]
[Termination "DaggiGretarsson won by resignation"]

1. d4 {[%clk 0:02:59.4]} 1... Nf6 {[%clk 0:02:59]} 2. c4 {[%clk 0:02:59]} 2...
e6 {[%clk 0:02:59.2]} 3. Nc3 {[%clk 0:02:58.3]} 3... Bb4 {[%clk 0:02:58.4]} 4.
Bd2 {[%clk 0:02:58.1]} 4... O-O {[%clk 0:02:58.2]} 5. e3 {[%clk 0:02:56.9]} 5...
c5 {[%clk 0:02:57.7]} 6. Nf3 {[%clk 0:02:55.8]} 6... b6 {[%clk 0:02:54]} 7. Bd3
{[%clk 0:02:54.5]} 7... Bb7 {[%clk 0:02:54.1]} 8. O-O {[%clk 0:02:54.2]} 8...
cxd4 {[%clk 0:02:53.2]} 9. Nxd4 {[%clk 0:02:51.2]} 9... Nc6 {[%clk 0:02:48.2]}
10. Nc2 {[%clk 0:02:47.8]} 10... Be7 {[%clk 0:02:47]} 11. Re1 {[%clk 0:02:12.6]}
11... Rc8 {[%clk 0:02:44.3]} 12. b3 {[%clk 0:02:05.5]} 12... d5 {[%clk 0:02:43]}
13. cxd5 {[%clk 0:01:50.5]} 13... Ne5 {[%clk 0:02:41.9]} 14. Bf1 {[%clk
0:01:31.1]} 14... Nxd5 {[%clk 0:02:38.7]} 15. Nxd5 {[%clk 0:01:22.6]} 15... Qxd5
{[%clk 0:02:39.6]} 16. Nd4 {[%clk 0:01:22.2]} 16... Bf6 {[%clk 0:02:27.3]} 17.
Bb4 {[%clk 0:01:08.2]} 17... Rfd8 {[%clk 0:02:26.2]} 18. Ba3 {[%clk 0:01:00]}
18... Ng6 {[%clk 0:01:52.3]} 19. Bb2 {[%clk 0:00:46.3]} 19... Nh4 {[%clk
0:01:39.3]} 20. Qg4 {[%clk 0:00:44]} 20... h5 {[%clk 0:01:24.3]} 21. Qh3 {[%clk
0:00:24.6]} 21... e5 {[%clk 0:01:14.6]} 22. Nf5 {[%clk 0:00:21.1]} 22... Nxf5
{[%clk 0:01:10.5]} 23. Qxf5 {[%clk 0:00:20.7]} 23... Rc2 {[%clk 0:01:11.1]} 24.
Qxc2 {[%clk 0:00:20]} 1-0

[Event "*** Titled Tuesday Blitz"]
[Site "Chess.com"]
[Date "2020.04.14"]
[Round "7"]
[White "goldenspine"]
[Black "AttilaTurzo"]
[Result "0-1"]
[WhiteElo "2314"]
[BlackElo "2487"]
[TimeControl "180+1"]
[EndTime "11:12:52 PDT"]
[Termination "AttilaTurzo won on time"]

1. d4 {[%clk 0:02:59.2]} 1... Nf6 {[%clk 0:02:59.6]} 2. c4 {[%clk 0:02:58.3]}
2... e6 {[%clk 0:02:59.8]} 3. a3 {[%clk 0:02:57]} 3... d5 {[%clk 0:02:49.5]} 4.
Nc3 {[%clk 0:02:55.9]} 4... c5 {[%clk 0:02:48.1]} 5. cxd5 {[%clk 0:02:49.8]}
5... cxd4 {[%clk 0:02:43.2]} 6. Qxd4 {[%clk 0:02:38.9]} 6... Nc6 {[%clk
0:02:43.1]} 7. Qa4 {[%clk 0:02:28.6]} 7... exd5 {[%clk 0:02:39.8]} 8. Bg5 {[%clk
0:02:25.1]} 8... Be7 {[%clk 0:02:34.9]} 9. e3 {[%clk 0:02:24.9]} 9... d4 {[%clk
0:02:21.2]} 10. Rd1 {[%clk 0:01:58.3]} 10... Qb6 {[%clk 0:02:10.2]} 11. Bxf6
{[%clk 0:00:55.5]} 11... Bxf6 {[%clk 0:02:09.8]} 12. Nd5 {[%clk 0:00:55.9]}
12... Qd8 {[%clk 0:02:09.6]} 13. Nxf6+ {[%clk 0:00:52.5]} 13... Qxf6 {[%clk
0:02:10.5]} 14. exd4 {[%clk 0:00:52.6]} 14... O-O {[%clk 0:02:07.2]} 15. Bd3
{[%clk 0:00:48.7]} 15... Bg4 {[%clk 0:01:52.7]} 16. f3 {[%clk 0:00:45.8]} 16...
Bf5 {[%clk 0:01:01.6]} 17. Ne2 {[%clk 0:00:45.6]} 17... Rfe8 {[%clk 0:01:00.4]}
18. Qb5 {[%clk 0:00:37.4]} 18... Nxd4 {[%clk 0:00:51.8]} 0-1

[Event "*** Titled Tuesday Blitz"]
[Site "Chess.com"]
[Date "2020.04.14"]
[Round "7"]
[White "Yeytruyol"]
[Black "frankshar"]
[Result "1-0"]
[WhiteElo "2408"]
[BlackElo "2242"]
[TimeControl "180+1"]
[EndTime "11:12:52 PDT"]
[Termination "Yeytruyol won by resignation"]

1. e4 {[%clk 0:03:00.9]} 1... c6 {[%clk 0:02:59.9]} 2. d4 {[%clk 0:03:00.4]}
2... d5 {[%clk 0:03:00.8]} 3. exd5 {[%clk 0:03:01]} 3... cxd5 {[%clk 0:03:01.1]}
4. c4 {[%clk 0:02:58.4]} 4... Nf6 {[%clk 0:02:59.8]} 5. Nc3 {[%clk 0:02:58.4]}
5... Nc6 {[%clk 0:02:55.7]} 6. Nf3 {[%clk 0:02:58.6]} 6... Bg4 {[%clk
0:02:55.6]} 7. cxd5 {[%clk 0:02:55.3]} 7... Nxd5 {[%clk 0:02:55.2]} 8. Qb3
{[%clk 0:02:54.6]} 8... Bxf3 {[%clk 0:02:55.5]} 9. gxf3 {[%clk 0:02:52]} 9...
Nb6 {[%clk 0:02:55.6]} 10. Be3 {[%clk 0:02:46.7]} 10... e6 {[%clk 0:02:54.9]}
11. d5 {[%clk 0:02:43.7]} 11... exd5 {[%clk 0:02:43.5]} 12. O-O-O {[%clk
0:02:39]} 12... Be7 {[%clk 0:02:30.2]} 13. Nxd5 {[%clk 0:02:37.8]} 13... Nxd5
{[%clk 0:02:29.8]} 14. Rxd5 {[%clk 0:02:36.7]} 14... Qc7 {[%clk 0:02:29.9]} 15.
Kb1 {[%clk 0:02:30.2]} 15... O-O {[%clk 0:02:28.8]} 16. Bd3 {[%clk 0:02:24.6]}
16... Rad8 {[%clk 0:02:20.2]} 17. Rd1 {[%clk 0:02:11.7]} 17... Rxd5 {[%clk
0:01:45]} 18. Qxd5 {[%clk 0:02:12.6]} 18... Nb4 {[%clk 0:01:41.8]} 19. Qc4
{[%clk 0:01:48.7]} 19... Qxh2 {[%clk 0:01:04.5]} 20. Be4 {[%clk 0:01:30.6]}
20... Qe5 {[%clk 0:00:55.7]} 21. Rd7 {[%clk 0:01:25.9]} 21... b5 {[%clk
0:00:52]} 22. Qd4 {[%clk 0:01:10.9]} 22... Qe6 {[%clk 0:00:42.5]} 23. Qxa7
{[%clk 0:01:08.8]} 23... Rd8 {[%clk 0:00:34.6]} 24. Rxe7 {[%clk 0:01:05.8]}
24... Rd1+ {[%clk 0:00:32.3]} 25. Bc1 {[%clk 0:01:02]} 25... Rxc1+ {[%clk
0:00:29.9]} 26. Kxc1 {[%clk 0:01:00.8]} 26... Qc4+ {[%clk 0:00:30.8]} 27. Kd2
{[%clk 0:00:57.3]} 1-0

[Event "*** Titled Tuesday Blitz"]
[Site "Chess.com"]
[Date "2020.04.14"]
[Round "7"]
[White "Pavlov_Sergey"]
[Black "LittlePeasant"]
[Result "0-1"]
[WhiteElo "2618"]
[BlackElo "2830"]
[TimeControl "180+1"]
[EndTime "11:12:56 PDT"]
[Termination "LittlePeasant won on time"]

1. c4 {[%clk 0:03:00.9]} 1... Nf6 {[%clk 0:02:59.1]} 2. Nf3 {[%clk 0:02:58.2]}
2... c6 {[%clk 0:02:59.1]} 3. d4 {[%clk 0:02:56.2]} 3... d5 {[%clk 0:03:00]} 4.
Nc3 {[%clk 0:02:55.9]} 4... a6 {[%clk 0:03:00]} 5. e3 {[%clk 0:02:53.1]} 5...
Bf5 {[%clk 0:02:59.6]} 6. Be2 {[%clk 0:02:46.4]} 6... h6 {[%clk 0:02:58.2]} 7.
Bd3 {[%clk 0:02:45.5]} 7... Bxd3 {[%clk 0:02:58.1]} 8. Qxd3 {[%clk 0:02:46]}
8... e6 {[%clk 0:02:59]} 9. O-O {[%clk 0:02:45.5]} 9... Bb4 {[%clk 0:02:56.8]}
10. b3 {[%clk 0:02:43.9]} 10... Nbd7 {[%clk 0:02:56.7]} 11. Bb2 {[%clk
0:02:44.2]} 11... O-O {[%clk 0:02:56.7]} 12. a3 {[%clk 0:02:34.5]} 12... Ba5
{[%clk 0:02:56.4]} 13. b4 {[%clk 0:02:33.6]} 13... Bc7 {[%clk 0:02:56.3]} 14.
Rac1 {[%clk 0:02:29.9]} 14... Re8 {[%clk 0:02:54.5]} 15. a4 {[%clk 0:02:27.3]}
15... dxc4 {[%clk 0:02:44.3]} 16. Qxc4 {[%clk 0:02:26.7]} 16... e5 {[%clk
0:02:44.8]} 17. dxe5 {[%clk 0:02:07.9]} 17... Nxe5 {[%clk 0:02:44.6]} 18. Nxe5
{[%clk 0:02:07.7]} 18... Bxe5 {[%clk 0:02:45.5]} 19. b5 {[%clk 0:01:55.5]} 19...
cxb5 {[%clk 0:02:18.8]} 20. axb5 {[%clk 0:01:55.4]} 20... Rc8 {[%clk 0:02:19.7]}
21. Qa4 {[%clk 0:01:41.8]} 21... a5 {[%clk 0:02:11.4]} 22. Rfd1 {[%clk 0:01:40]}
22... Qb6 {[%clk 0:02:09.9]} 23. g3 {[%clk 0:01:05.1]} 23... Qe6 {[%clk
0:01:55.4]} 24. Kg2 {[%clk 0:00:11.7]} 24... b6 {[%clk 0:01:55.4]} 25. Rd2
{[%clk 0:00:10.5]} 25... Bxc3 {[%clk 0:01:26.8]} 26. Rxc3 {[%clk 0:00:09.5]}
26... Rxc3 {[%clk 0:01:26.9]} 27. Bxc3 {[%clk 0:00:09.6]} 27... Ne4 {[%clk
0:01:27.8]} 28. Rc2 {[%clk 0:00:06.8]} 28... Qd5 {[%clk 0:01:25.1]} 29. Kg1
{[%clk 0:00:01.4]} 29... Qd1+ {[%clk 0:01:15.3]} 30. Kg2 {[%clk 0:00:01.5]}
30... Nxc3 {[%clk 0:01:15.9]} 0-1